bitfinex-derivatives/quotes_SOLF0:USTF0_20250413
["timestamp","ask_amount","ask_price","bid_price","bid_amount"]
[1744543085768,1.39435832,129.65,129.5,6.0775]
[1744543085972,1001.4725,129.66,129.5,6.0775]
[1744543086169,1.39388342,129.65,129.5,6.0775]
[1744543086370,1001.4725,129.66,129.5,6.0775]
[1744543086572,0.0541716,129.59,129.56,0.05035551]
[1744543086771,1.39382035,129.65,129.5,6.0775]
[1744543087068,0.05263128,129.56,129.53,0.05438183]
[1744543087370,611.0,129.58,129.47,3.0444]
[1744543087574,2.8166,129.57,129.47,3.0444]
[1744543088273,2.8166,129.57,129.42,5.8276]
[1744543088473,0.05811107,129.53,129.51,0.05916363]
[1744543088676,0.05811107,129.53,129.43,3.0444]
[1744543088974,2.8166,129.57,129.43,3.0444]
[1744543089175,0.05525211,129.49,129.47,0.04920756]
[1744543089374,2.8166,129.57,129.43,3.0444]
[1744543089874,0.05425899,129.49,129.47,0.05093536]
[1744543090075,2.8166,129.57,129.43,3.0444]
[1744543090374,0.05691505,129.49,129.47,0.05509323]
[1744543090772,2.8166,129.57,129.43,3.0444]
[1744543091070,0.05058609,129.49,129.47,0.05528583]
[1744543091276,1.39128816,129.56,129.43,3.0444]
[1744543091475,2.8166,129.57,129.43,3.0444]
[1744543091779,0.05162126,129.49,129.47,0.04983683]
[1744543092276,2.8166,129.57,129.47,0.04983683]
[1744543092575,5.6814,129.57,129.43,3.0444]
[1744543092773,1.39134602,129.56,129.43,3.0444]
[1744543093076,1.39134602,129.56,129.42,5.8276]
[1744543093077,365.54380548,129.55,129.42,2.9591]
[1744543093270,3.54557067,129.54,129.36,6.0407]
[1744543093471,0.05627312,129.5,129.36,6.0407]
[1744543093766,611.56,129.49,129.36,6.0407]
[1744543094579,6.5109,129.48,129.29,339.07541016]
[1744543094782,0.05249464,129.44,129.3,6.0407]
[1744543094972,364.0,129.47,129.3,3.0124]
[1744543095173,2.93382395,129.46,129.23,3.0283]
[1744543095372,364.0,129.45,129.23,5.8914]
[1744543095571,1.38946948,129.44,129.23,5.8914]
[1744543095978,0.05012534,129.35,129.32,0.05931967]
[1744543096472,611.56,129.41,129.32,0.05931967]
[1744543096473,2.9993,129.4,129.32,0.05284673]
[1744543096673,0.05573079,129.35,129.32,0.05284673]
[1744543096878,2.8644,129.39,129.23,344.96681016]
[1744543097080,0.05781678,129.35,129.32,0.05012704]
[1744543097271,2.8644,129.39,129.32,0.05012704]
[1744543097681,0.05245952,129.35,129.32,0.05012704]
[1744543098478,614.8793,129.4,129.32,0.05012704]
[1744543098680,614.8793,129.4,129.24,2.8216]
[1744543098880,614.8793,129.4,129.24,341.89701016]
[1744543099175,611.88,129.4,129.24,341.89701016]
[1744543099377,611.88,129.4,129.31,0.05337815]
[1744543099581,611.88,129.4,129.24,341.89701016]
[1744543099778,611.88,129.4,129.34,0.05208466]
[1744543099981,0.04877238,129.37,129.34,0.05208466]
[1744543100179,0.04877238,129.37,129.24,341.89701016]
[1744543100180,611.88,129.4,129.24,341.89701016]
[1744543100379,0.05724118,129.37,129.24,341.89701016]
[1744543100582,611.88,129.4,129.24,2.8216]
[1744543100879,1.38998955,129.39,129.24,2.8216]
[1744543101076,3.5741,129.38,129.24,2.8216]
[1744543101481,0.05302285,129.32,129.3,0.05633163]
[1744543101683,2.9874,129.37,129.24,2.8216]
[1744543101883,0.05580175,129.32,129.3,0.05872035]
[1744543102083,2.9874,129.37,129.3,0.05872035]
[1744543102386,0.05646493,129.32,129.3,0.05872035]
[1744543102682,0.05360408,129.35,129.3,0.05872035]
[1744543102884,2.9874,129.37,129.3,0.05872035]
[1744543103078,0.05785495,129.34,129.3,0.05872035]
[1744543104779,0.05785495,129.34,129.24,2.8216]
[1744543104985,390.6452,129.36,129.24,2.8216]
[1744543105186,1.38997985,129.35,129.24,2.8216]
[1744543105380,1.38997985,129.35,129.12,342.13951016]
[1744543105583,364.0,129.34,129.13,5.8891]
[1744543105784,1.38997985,129.33,129.13,5.8891]
[1744543106084,0.05885395,129.25,129.22,0.05608628]
[1744543106283,612.42,129.32,129.13,5.8891]
[1744543106587,0.04859176,129.25,129.22,0.05140981]
[1744543106890,612.42,129.32,129.13,344.96451016]
[1744543107083,2.9874,129.37,129.13,545.96451016]
[1744543107284,2.9874,129.37,129.14,64.97041773]
[1744543107484,612.42,129.39,129.15,2.97029782]
[1744543107684,612.42,129.39,129.16,2.97017792]
[1744543107987,612.42,129.39,129.26,0.05084781]
[1744543108187,615.294,129.45,129.26,339.07541016]
[1744543108390,615.294,129.45,129.27,6.1482]
[1744543108585,612.42,129.45,129.27,6.1482]
[1744543109083,0.0561027,129.37,129.35,0.04973758]
[1744543109289,612.42,129.45,129.35,0.04973758]
[1744543109589,612.42,129.45,129.27,6.1482]
[1744543109788,612.42,129.45,129.27,345.22361016]
[1744543109988,615.2684,129.45,129.27,345.22361016]
[1744543110587,0.05168754,129.37,129.35,0.05812258]
[1744543111089,0.05425036,129.37,129.35,0.05430532]
[1744543112191,0.05425036,129.37,129.27,345.22361016]
[1744543112388,364.8238,129.44,129.27,6.1482]
[1744543112986,364.0,129.44,129.27,6.1482]
[1744543113389,0.05181321,129.37,129.34,0.05130747]
[1744543113691,364.0,129.44,129.27,6.1482]
[1744543113991,364.0,129.44,129.27,68.1482]
[1744543114194,615.2684,129.45,129.27,407.22361016]
[1744543114791,0.05201629,129.37,129.35,0.05937867]
[1744543115089,615.2684,129.45,129.27,407.22361016]
[1744543116093,0.05853643,129.37,129.35,0.05370825]
[1744543116396,615.2684,129.45,129.27,407.22361016]
[1744543116695,0.050051,129.37,129.35,0.05025985]
[1744543116894,612.42,129.45,129.27,407.22361016]
[1744543117096,612.42,129.45,129.28,1.42026819]
[1744543117297,612.42,129.45,129.27,407.22361016]
[1744543117495,612.42,129.45,129.27,345.22361016]
[1744543118097,0.05284052,129.37,129.35,0.04996974]
[1744543118393,612.42,129.45,129.27,345.22361016]
[1744543118597,0.05876019,129.37,129.35,0.04921151]
[1744543118797,612.42,129.45,129.27,345.22361016]
[1744543119091,0.05397632,129.37,129.35,0.05046181]
[1744543119396,612.42,129.45,129.27,345.22361016]
[1744543119694,0.05834877,129.37,129.35,0.05762577]
[1744543119896,612.42,129.45,129.35,0.05762577]
[1744543120088,612.42,129.45,129.27,345.22361016]
[1744543120500,612.42,129.45,129.28,62.0]
[1744543121000,0.05013408,129.38,129.35,0.05659792]
[1744543121200,612.42,129.45,129.28,401.07541016]
[1744543121403,0.05221646,129.38,129.35,0.05900218]
[1744543121700,612.42,129.45,129.28,339.07541016]
[1744543121892,0.05221646,129.38,129.35,0.05096334]
[1744543122094,612.42,129.45,129.28,339.07541016]
[1744543122307,0.05221646,129.38,129.35,0.05618664]
[1744543122497,612.42,129.45,129.28,339.07541016]
[1744543122696,0.05221646,129.38,129.35,0.05299241]
[1744543122999,612.42,129.45,129.28,339.07541016]
[1744543123198,0.05221646,129.38,129.35,0.05761467]
[1744543123400,612.42,129.45,129.28,339.07541016]
[1744543123705,0.05006538,129.38,129.35,0.05784407]
[1744543123899,612.42,129.45,129.28,339.07541016]
[1744543124203,0.05221646,129.38,129.35,0.05403934]
[1744543124501,68.84,129.44,129.29,68.84]
[1744543124702,0.04902681,129.38,129.35,0.0556148]
[1744543124897,68.84,129.44,129.29,407.91541016]
[1744543125099,68.84,129.44,129.35,0.05539054]
[1744543125100,0.05221646,129.38,129.35,0.05539054]
[1744543125298,68.84,129.44,129.3,3.0442]
[1744543125498,0.05221646,129.38,129.35,0.05788625]
[1744543125803,68.84,129.44,129.3,342.11961016]
[1744543126003,0.05221646,129.38,129.35,0.05408725]
[1744543126200,4.3532,129.43,129.3,342.11961016]
[1744543126496,0.05221646,129.38,129.35,0.05168348]
[1744543126703,0.05221646,129.38,129.3,342.11961016]
[1744543126898,3.0762,129.42,129.35,0.05590802]
[1744543127097,0.05221646,129.37,129.35,0.05590802]
[1744543127400,3.0762,129.42,129.35,0.05590802]
[1744543127603,0.05221646,129.37,129.35,0.05590802]
[1744543130306,0.05221646,129.37,129.27,6.1482]
[1744543130504,3.0695,129.37,129.27,3.0463]
[1744543130704,4.4523,129.37,129.27,3.0463]
[1744543131203,3.0695,129.37,129.27,3.0463]
[1744543131602,0.05740692,129.33,129.31,0.05946465]
[1744543133004,70.395,129.41,129.31,0.05946465]
[1744543133308,70.395,129.41,129.27,3.0463]
[1744543133600,70.395,129.41,129.27,954.56171016]
[1744543134204,0.05059094,129.35,129.33,0.0530369]
[1744543134506,70.395,129.41,129.27,954.56171016]
[1744543134804,0.05071756,129.35,129.33,0.04877519]
[1744543134994,70.395,129.41,129.27,954.56171016]
[1744543135201,0.05071756,129.35,129.33,0.05131043]
[1744543135402,70.395,129.41,129.27,954.56171016]
[1744543135600,0.05071756,129.35,129.33,0.05561268]
[1744543135799,73.3287,129.41,129.27,954.56171016]
[1744543136008,0.05056318,129.35,129.33,0.0496073]
[1744543136307,73.3287,129.41,129.27,954.56171016]
[1744543136508,0.05071756,129.35,129.33,0.05936601]
[1744543136708,70.1137,129.41,129.28,67.18]
[1744543137008,70.1137,129.41,129.33,0.05748804]
[1744543137209,70.1137,129.41,129.28,406.25541016]
[1744543137410,67.18,129.41,129.28,406.25541016]
[1744543137605,612.44,129.43,129.28,406.25541016]
[1744543137909,612.44,129.43,129.34,0.04953132]
[1744543138110,612.44,129.43,129.28,406.25541016]
[1744543138306,612.44,129.43,129.37,0.05672455]
[1744543138611,612.44,129.43,129.28,406.25541016]
[1744543138803,612.44,129.43,129.39,0.05187832]
[1744543139004,612.44,129.43,129.28,406.25541016]
[1744543140510,0.05778159,129.37,129.34,0.0562305]
[1744543140710,612.44,129.43,129.34,0.0562305]
[1744543141012,0.05249654,129.37,129.34,0.05665058]
[1744543141210,612.44,129.43,129.28,406.25541016]
[1744543141410,0.0528438,129.37,129.34,0.05949301]
[1744543141605,0.0528438,129.37,129.28,406.25541016]
[1744543141806,0.05434583,129.34,129.31,0.05655339]
[1744543142008,65.52,129.41,129.28,406.25541016]
[1744543142211,0.05702023,129.34,129.31,0.05803082]
[1744543142513,65.52,129.41,129.28,406.25541016]
[1744543142710,0.05689935,129.34,129.31,0.05161208]
[1744543142909,0.05689935,129.34,129.28,406.25541016]
[1744543143117,0.05032454,129.34,129.31,0.05059749]
[1744543143711,66.9331,129.46,129.31,0.05059749]
[1744543143911,71.4407,129.46,129.31,339.07541016]
[1744543144211,71.4407,129.46,129.32,6.2796]
[1744543144918,71.4407,129.46,129.38,0.05676965]
[1744543145111,71.4407,129.46,129.32,6.2796]
[1744543145318,71.4407,129.46,129.41,0.05546791]
[1744543145515,71.4407,129.46,129.34,63.86]
[1744543145715,71.4407,129.46,129.42,0.05321054]
[1744543145918,71.4407,129.46,129.34,63.86]
[1744543146119,71.4407,129.46,129.43,0.04985425]
[1744543146419,71.4407,129.46,129.43,0.05879092]
[1744543149519,79.1607,129.46,129.34,63.86]
[1744543149718,71.4407,129.46,129.34,63.86]
[1744543150720,0.055326,129.41,129.39,0.05120675]
[1744543150924,71.4407,129.46,129.39,0.05120675]
[1744543151119,0.05776956,129.41,129.39,0.05120675]
[1744543151326,71.4407,129.46,129.39,0.05120675]
[1744543151524,0.04974855,129.41,129.39,0.05120675]
[1744543151721,71.4407,129.46,129.39,0.05120675]
[1744543151921,0.05298139,129.41,129.39,0.05120675]
[1744543152122,71.4407,129.46,129.39,0.05120675]
[1744543152324,0.05035255,129.41,129.39,0.05120675]
[1744543152526,71.4407,129.46,129.39,0.05120675]
[1744543152726,0.05542519,129.41,129.39,0.05120675]
[1744543153026,0.05306069,129.41,129.39,0.05120675]
[1744543155923,728.51523819,129.49,129.39,0.05120675]
[1744543156128,728.51523819,129.49,129.34,1015.27541016]
[1744543156934,615.4367,129.49,129.34,1015.27541016]
[1744543157136,615.4367,129.49,129.4,0.05591975]
[1744543157433,615.4367,129.49,129.34,1015.27541016]
[1744543157632,615.4367,129.49,129.43,0.05367592]
[1744543157830,4.5483,129.5,129.43,0.05367592]
[1744543157831,3.0589,129.5,129.43,0.05367592]
[1744543158039,3.0589,129.5,129.45,0.05347239]
[1744543159039,74.74286647,129.53,129.45,0.05347239]
[1744543159438,74.74286647,129.53,129.41,345.06691016]
[1744543159638,74.74286647,129.53,129.48,0.05661743]
[1744543160736,2.9967,129.53,129.48,0.05661743]
[1744543162139,4.6895,129.54,129.48,0.05661743]
[1744543163441,3.1977,129.54,129.48,0.05661743]
[1744543163934,672.9,129.55,129.48,0.05661743]
[1744543164132,60.62,129.55,129.48,0.05661743]
[1744543165939,2.9105,129.57,129.48,0.05661743]
[1744543166141,2.9105,129.57,129.48,6.0465]
[1744543166341,2.9105,129.57,129.51,0.05096632]
[1744543167041,58.76,129.58,129.51,0.05096632]
[1744543167745,3.0014,129.6,129.51,0.05096632]
[1744543168047,3.0014,129.6,129.48,6.0465]
[1744543168245,3.0014,129.6,129.54,0.05039052]
[1744543183853,55.08,129.59,129.54,0.05039052]
[1744543185359,55.08,129.59,129.45,1.34362934]
[1744543185654,388.59344806,129.58,129.33,2.9494]
[1744543185956,23.05,129.56,129.33,342.02481016]
[1744543186157,2.92775221,129.55,129.35,1.3444599]
[1744543186357,23.05,129.53,129.35,1.3444599]
[1744543186553,0.05268793,129.46,129.44,0.05065635]
[1744543186758,55.1,129.46,129.35,339.07541016]
[1744543186959,1.539,129.45,129.35,339.07541016]
[1744543187859,0.04898658,129.41,129.39,0.05613795]
[1744543190967,53.4,129.4,129.39,0.05613795]
[1744543193471,53.4,129.4,129.27,339.07541016]
[1744543193765,53.4,129.4,129.28,9.0697]
[1744543194568,0.05034968,129.35,129.33,0.05752656]
[1744543194769,53.4,129.4,129.33,0.05752656]
[1744543195169,0.05081777,129.35,129.33,0.05752656]
[1744543195370,53.4,129.4,129.33,0.05752656]
[1744543195569,0.05661967,129.35,129.33,0.05752656]
[1744543195766,53.4,129.4,129.33,0.05752656]
[1744543196269,0.05908191,129.38,129.33,0.05752656]
[1744543196965,612.16,129.37,129.25,1.34573368]
[1744543197173,612.16,129.37,129.21,9.3541]
[1744543197368,612.16,129.37,129.23,1.34588981]
[1744543197570,612.16,129.37,129.24,53.44]
[1744543198168,0.04995638,129.32,129.29,0.05467719]
[1744543198368,0.04995638,129.32,129.24,392.51541016]
[1744543198566,612.16,129.37,129.29,0.05078311]
[1744543198774,0.05774938,129.32,129.24,392.51541016]
[1744543199071,612.16,129.37,129.24,392.51541016]
[1744543199271,0.05532499,129.29,129.27,0.05614136]
[1744543199467,2.9256,129.39,129.27,339.07541016]
[1744543199674,2.9256,129.39,129.28,9.1847]
[1744543200779,0.05386999,129.35,129.32,0.05148041]
[1744543201074,53.49386999,129.35,129.28,3.0907]
[1744543202075,53.49386999,129.35,129.3,0.05226544]
[1744543203775,0.05386999,129.35,129.3,0.05226544]
[1744543204368,0.05386999,129.35,129.3,3.01476544]
[1744543204775,51.86,129.39,129.3,3.01476544]
[1744543204776,51.86,129.39,129.3,342.0901756]
[1744543204970,4.5574,129.42,129.3,342.0901756]
[1744543205166,4.5574,129.42,129.3,342.03791016]
[1744543205669,23.18,129.41,129.25,1.34557757]
[1744543205973,0.05698096,129.34,129.18,6.1821]
[1744543206166,51.93698096,129.34,129.19,53.42810743]
[1744543206475,7.8705,129.33,129.2,1.54798761]
[1744543207276,0.05215845,129.28,129.25,0.0576316]
[1744543207477,0.05215845,129.28,129.25,51.9376316]
[1744543207673,0.05215845,129.28,129.26,3.1886]
[1744543208677,0.05215845,129.28,129.25,51.93151552]
[1744543209176,0.05215845,129.28,129.25,0.05151552]
[1744543210677,0.05215845,129.28,129.2,3.1976]
[1744543210876,4.6766,129.33,129.2,3.1976]
[1744543211178,391.8566,129.33,129.2,3.1976]
[1744543211373,1.34680135,129.32,129.18,54.8935]
[1744543211872,1.34680135,129.32,129.24,0.05544994]
[1744543212071,0.05183326,129.26,129.15,5.958]
[1744543212276,51.9,129.25,129.15,2.9175]
[1744543212476,53.3967,129.24,129.15,2.9175]
[1744543212979,53.3967,129.24,129.12,51.9]
[1744543213370,0.0575096,129.19,129.17,0.05584991]
[1744543213779,53.3967,129.24,129.17,0.05584991]
[1744543213979,0.05366359,129.19,129.17,0.05584991]
[1744543214285,0.05266826,129.19,129.1,6.0558]
[1744543214477,0.05266826,129.19,129.1,209.03121016]
[1744543214678,53.3967,129.24,129.1,209.03121016]
[1744543215085,53.3967,129.24,129.1,6.0558]
[1744543215586,0.05469082,129.18,129.16,0.05065654]
[1744543215877,53.3967,129.24,129.1,6.0558]
[1744543216083,0.05892383,129.18,129.16,0.05572097]
[1744543216377,53.3967,129.24,129.1,6.0558]
[1744543216584,0.0525057,129.18,129.16,0.05401304]
[1744543216882,53.3967,129.24,129.13,50.42]
[1744543217080,53.3967,129.24,129.16,0.04941537]
[1744543217279,0.05482636,129.18,129.1,2.9175]
[1744543217478,50.42,129.18,129.1,2.9175]
[1744543218481,0.05358258,129.15,129.13,0.05395563]
[1744543219480,0.05358258,129.15,129.08,3.0405]
[1744543219687,0.05358258,129.15,129.04,3.2098]
[1744543220079,4.4788,129.16,129.05,3.129]
[1744543220584,4.4788,129.16,129.04,3.2098]
[1744543220780,0.04915084,129.12,129.09,0.05622265]
[1744543222177,0.04915084,129.12,129.09,52.05622265]
[1744543222387,52.0,129.2,129.1,2.9063]
[1744543223584,0.05747528,129.16,129.14,0.05773002]
[1744543223980,2.9785,129.22,129.1,54.9063]
[1744543224280,0.05603691,129.16,129.14,0.05603841]
[1744543224476,52.0,129.17,128.99,53.34834073]
[1744543224682,56.7642,129.16,129.04,2.9655]
[1744543224881,55.2032,129.15,129.04,2.9655]
[1744543225583,0.05405951,129.11,129.08,0.05671018]
[1744543232191,52.07405951,129.11,128.93,264.97541016]
[1744543232387,52.07405951,129.11,128.94,7.6117748]
[1744543232588,387.18,129.1,128.91,1.34873266]
[1744543232788,364.0,129.1,128.92,6.1878]
[1744543233088,3.0004,129.09,128.92,6.1878]
[1744543233282,613.52,129.08,128.92,6.1878]
[1744543233489,0.05269983,129.02,128.99,0.05208742]
[1744543233685,52.02,129.07,128.92,6.1878]
[1744543233885,0.05498321,129.02,128.99,0.05764718]
[1744543234094,0.05498321,129.02,128.92,209.16321016]
[1744543234294,52.02,129.07,128.99,0.05951009]
[1744543234494,0.05651408,128.98,128.92,6.1878]
[1744543234797,52.02,129.07,128.94,0.05945526]
[1744543235094,52.02,129.07,128.92,6.1878]
[1744543235290,0.05631491,129.02,128.99,0.04915438]
[1744543235487,0.05631491,129.02,128.92,6.1878]
[1744543235686,52.02,129.07,128.99,0.05258084]
[1744543235891,616.5052,129.08,128.97,52.04]
[1744543236193,55.0404,129.09,129.02,0.04908112]
[1744543236393,55.0404,129.09,128.99,3.042]
[1744543236995,78.2204,129.09,128.91,1.3493079]
[1744543237192,0.05198937,129.05,128.84,622.7344]
[1744543237393,53.74,129.04,128.85,1.42518363]
[1744543237591,26.1029,129.03,128.84,622.7344]
[1744543237786,3.1097,129.02,128.84,622.7344]
[1744543238091,4.6076,129.02,128.84,825.70981016]
[1744543238296,4.6076,129.02,128.85,2.77495047]
[1744543238496,4.6076,129.02,128.92,0.05022556]
[1744543238497,0.05264569,128.94,128.92,0.05022556]
[1744543238696,4.6076,129.02,128.92,0.05022556]
[1744543238896,4.6076,129.02,128.9,3.0]
[1744543239291,2.9229,129.03,128.9,3.0]
[1744543239496,23.18,129.11,128.91,6.2938]
[1744543239697,23.18,129.11,128.91,209.26921016]
[1744543239896,0.05416709,129.02,129.0,0.05555434]
[1744543240296,621.5107,129.12,128.91,209.26921016]
[1744543240497,0.05307627,129.02,129.0,0.05891535]
[1744543240797,365.54906668,129.11,128.91,209.26921016]
[1744543240997,0.05801928,129.02,129.0,0.05724503]
[1744543241298,365.54906668,129.11,128.91,823.14921016]
[1744543241598,0.04987009,129.02,129.0,0.05079474]
[1744543242503,76.57422716,129.12,129.0,7.81079474]
[1744543242704,6.2271,129.12,129.01,6.4231]
[1744543243208,4.6438,129.17,129.01,6.4231]
[1744543243407,3.2111,129.16,129.01,6.4231]
[1744543243906,0.05101672,129.1,129.08,0.05332124]
[1744543244310,3.2111,129.16,129.0,6.1277]
[1744543244513,0.05945503,129.1,129.08,0.05874561]
[1744543244813,3.2111,129.16,129.0,6.1277]
[1744543245110,0.05806701,129.1,129.08,0.05472566]
[1744543245411,3.2111,129.16,129.0,6.1277]
[1744543245602,0.0578113,129.1,129.08,0.0507858]
[1744543245911,3.2111,129.16,129.0,6.1277]
[1744543246112,0.05618685,129.1,129.08,0.05166664]
[1744543246610,0.05298331,129.1,129.08,0.04970668]
[1744543247610,0.05298331,129.1,128.85,202.97541016]
[1744543247611,621.65298331,129.1,128.85,202.97541016]
[1744543247906,1.5486,129.09,128.86,3.0049]
[1744543248113,365.37799561,129.08,128.86,9.0065]
[1744543248313,1.37799561,129.07,128.86,9.0065]
[1744543248708,0.05163412,128.98,128.95,0.05517296]
[1744543249109,1.37799561,129.07,128.86,9.0065]
[1744543249318,0.05726832,128.98,128.95,0.05124623]
[1744543249615,1.37799561,129.07,128.86,9.0065]
[1744543249809,1.37799561,129.07,128.95,0.05014602]
[1744543249810,0.05053837,128.98,128.95,0.05014602]
[1744543250116,1.37799561,129.07,128.86,9.0065]
[1744543250318,0.04880407,128.98,128.95,0.05949383]
[1744543250711,1.34977892,129.05,128.86,9.0065]
[1744543250911,0.05347853,128.98,128.95,0.05232094]
[1744543251112,1.5486,129.03,128.86,211.98191016]
[1744543251308,0.05754821,128.93,128.86,211.98191016]
[1744543251512,0.05754821,128.93,128.91,0.05507302]
[1744543251713,1.5486,129.03,128.86,211.98191016]
[1744543251914,0.05765071,128.93,128.91,0.05036064]
[1744543252117,1.5486,129.03,128.91,0.05036064]
[1744543252416,0.05510565,128.93,128.86,211.98191016]
[1744543252616,1.5486,129.03,128.96,0.05951346]
[1744543253018,0.05039919,129.01,128.86,211.98191016]
[1744543253221,0.05039919,129.01,128.98,0.05830574]
[1744543253421,2.9534,129.04,128.89,614.14]
[1744543253718,2.9534,129.04,128.89,817.11541016]
[1744543253920,0.05301018,128.98,128.95,0.05351205]
[1744543254225,2.9534,129.04,128.89,817.11541016]
[1744543254518,1.5542,129.07,128.95,0.05191232]
[1744543254721,1.5542,129.07,128.89,817.11541016]
[1744543254908,5.9377,129.08,128.9,1.42460128]
[1744543255310,5.9377,129.08,128.9,204.40001144]
[1744543255510,614.14,129.1,128.91,1.42460128]
[1744543255722,6.1322,129.12,128.98,0.04905845]
[1744543256026,6.1322,129.12,128.98,817.11541016]
[1744543256217,6.1322,129.12,128.99,9.1141]
[1744543256819,0.05056075,129.07,129.04,0.05177211]
[1744543257022,0.05056075,129.07,128.99,9.1141]
[1744543257315,6.1322,129.12,129.04,0.05354613]
[1744543257617,0.0573112,129.09,128.99,9.1141]
[1744543257819,6.1322,129.12,129.07,0.05467638]
[1744543258020,0.05781522,129.05,128.99,9.1141]
[1744543258220,6.1322,129.12,128.99,9.1141]
[1744543258420,0.05909151,129.03,129.01,0.05128611]
[1744543258615,6.1322,129.12,128.99,9.1141]
[1744543258815,0.05319548,129.03,129.01,0.05044928]
[1744543259014,1.37884039,129.11,128.93,9.1723]
[1744543259222,0.05348418,129.03,129.01,0.04882659]
[1744543259521,365.37884039,129.11,128.93,9.1723]
[1744543259720,0.05199008,129.03,129.01,0.05004309]
[1744543259922,614.06,129.07,128.93,9.1723]
[1744543261122,0.05586678,129.01,128.99,0.05210203]
[1744543263424,6.1322,129.12,128.99,7.81210203]
[1744543263620,6.1322,129.12,129.0,6.2848]
[1744543264629,0.05450368,129.07,129.05,0.0567069]
[1744543264925,6.1322,129.12,129.05,0.0567069]
[1744543265126,0.05545426,129.07,129.05,0.0567069]
[1744543265326,6.1322,129.12,129.05,0.0567069]
[1744543265826,0.04910463,129.1,129.05,0.0567069]
[1744543272326,7.78910463,129.1,128.95,3.2171]
[1744543272532,387.18,129.11,128.95,3.2171]
[1744543272830,1.38100977,129.1,128.95,3.2171]
[1744543273329,364.0,129.11,128.95,3.2171]
[1744543273527,0.04919317,129.04,129.01,0.05579583]
[1744543273830,6.1322,129.12,128.95,206.19251016]
[1744543274031,0.05031363,129.04,129.01,0.05662296]
[1744543274231,68.0,129.11,128.97,68.0]
[1744543274434,0.05884764,129.04,129.01,0.05294099]
[1744543274633,68.0,129.11,128.97,68.0]
[1744543274833,0.05337875,129.04,129.01,0.05945494]
[1744543275132,0.05337875,129.04,128.97,68.0]
[1744543275133,68.0,129.11,128.97,68.0]
[1744543275334,0.04914925,129.04,129.01,0.05152667]
[1744543275532,68.0,129.11,128.97,68.0]
[1744543275733,0.05727313,129.04,129.01,0.05182385]
[1744543275933,68.0,129.11,128.97,68.0]
[1744543276138,0.05790583,129.04,129.01,0.05749576]
[1744543276335,68.0,129.04,128.94,2.9434]
[1744543276633,6.1574,129.03,128.94,2.9434]
[1744543276836,6.1574,129.03,128.95,3.0584]
[1744543277531,0.05882237,129.0,128.98,0.05215023]
[1744543278033,0.05882237,129.0,128.89,205.98071016]
[1744543278232,1.551,129.02,128.9,6.0577]
[1744543279236,0.05674416,128.97,128.95,0.05690821]
[1744543279528,1.551,129.02,128.95,0.05690821]
[1744543279726,0.0546267,128.97,128.95,0.05690821]
[1744543279930,1.551,129.02,128.95,0.05690821]
[1744543280129,0.05313868,128.97,128.95,0.05690821]
[1744543280331,68.0,128.98,128.9,3.0932]
[1744543280637,0.05635278,128.97,128.9,3.0932]
[1744543280935,0.05635278,128.97,128.83,3.059]
[1744543281136,68.0,128.98,128.84,6.2416]
[1744543281634,0.05453345,128.92,128.9,0.05928962]
[1744543281830,0.05453345,128.92,128.89,0.27804]
[1744543282034,0.05763123,128.92,128.9,0.04939908]
[1744543283330,682.14,128.98,128.9,0.04939908]
[1744543283532,682.14,128.98,128.89,0.27804]
[1744543284531,0.05256482,128.95,128.92,0.05195838]
[1744543292339,64.38,129.02,128.92,0.05195838]
[1744543292636,64.38,129.02,128.91,2.9443]
[1744543293537,0.05880637,128.98,128.95,0.05483249]
[1744543294240,64.38,129.02,128.95,0.05483249]
[1744543294637,614.42,129.05,128.95,0.05483249]
[1744543294839,614.42,129.05,128.91,205.91971016]
[1744543295340,0.05384319,128.99,128.97,0.05885196]
[1744543295540,637.6,129.05,128.91,2.9443]
[1744543295743,0.05337846,128.99,128.97,0.05290827]
[1744543295935,637.6,129.05,128.91,2.9443]
[1744543296136,0.05553165,128.99,128.97,0.05440878]
[1744543296337,637.6,129.05,128.91,2.9443]
[1744543296541,0.05072323,128.99,128.97,0.055933]
[1744543296743,637.6,129.05,128.91,2.9443]
[1744543297041,0.04939381,128.99,128.97,0.05171636]